fUSD/lending_fUSD_20260430
["ID","MTS","AMOUNT","RATE_DAILY","PERIOD"]
[421348092,1777485046000,-500.0,0.0001,2]
[421348076,1777485046000,-500.0,0.0001,2]
[421348070,1777485046000,-151.0,0.0001,2]
[421348082,1777485046000,-151.0,0.0001,2]
[421348090,1777485046000,-151.0,0.0001,2]
[421348161,1777485047000,-736.0,0.00011287,2]
[421348155,1777485047000,-1600.0,0.00010969,2]
[421348158,1777485047000,-2407.0,0.00011214,2]
[421348152,1777485047000,-500.0,0.00010959,2]
[421348154,1777485047000,-150.0,0.00010959,2]
[421348162,1777485047000,-166.66,0.00011288,2]
[421348153,1777485047000,-166.66,0.00010959,2]
[421348159,1777485047000,-1000.0,0.00011221,2]
[421348150,1777485047000,-5406.38965514,0.000109,2]
[421348151,1777485047000,-250.0,0.00010936,2]
[421348148,1777485047000,-344294.25284983,0.000107,2]
[421348147,1777485047000,-151.0,0.00010697,2]
[421348146,1777485047000,-500.0,0.00010673,2]
[421348143,1777485047000,-500.0,0.00010673,2]
[421348149,1777485047000,-19900.0,0.000109,3]
[421348144,1777485047000,-502.86553041,0.00010673,2]
[421348139,1777485047000,-160.0,0.00010656,2]
[421348140,1777485047000,-503.11588169,0.00010673,2]
[421348142,1777485047000,-500.0,0.00010673,2]
[421348160,1777485047000,-299.99,0.00011281,2]
[421348141,1777485047000,-500.0,0.00010673,2]
[421348145,1777485047000,-365.62199556,0.00010673,2]
[421348156,1777485047000,-166.66,0.00011068,2]
[421348168,1777485047000,-29055.0647152,0.00011841,2]
[421348175,1777485047000,-18530.82315414,0.000119,2]
[421348185,1777485047000,-6079.08913418,0.00012,2]
[421348183,1777485047000,-6.7267,0.00012,2]
[421348181,1777485047000,-292541.63033081,0.00012,2]
[421348179,1777485047000,-151.0,0.00011997,2]
[421348157,1777485047000,-166.66,0.00011178,2]
[421348176,1777485047000,-3975.12343718,0.000119,2]
[421348177,1777485047000,-1500.0153103,0.000119,2]
[421348178,1777485047000,-151.0,0.00011997,2]
[421348182,1777485047000,-15533.36304951,0.00012,2]
[421348166,1777485047000,-666.0,0.0001184,2]
[421348180,1777485047000,-151.0,0.00011997,2]
[421348165,1777485047000,-166.66,0.00011507,2]
[421348169,1777485047000,-3911.3616623,0.00011841,2]
[421348163,1777485047000,-2000.0,0.00011301,2]
[421348173,1777485047000,-24900.0,0.000119,4]
[421348170,1777485047000,-27902.8383805,0.00011841,2]
[421348184,1777485047000,-810.738422,0.00012,2]
[421348167,1777485047000,-1977.8548711,0.00011841,2]
[421348174,1777485047000,-155.87585118,0.000119,2]
[421348164,1777485047000,-166.66,0.00011397,2]
[421348172,1777485047000,-10000.0,0.0001188,2]
[421348171,1777485047000,-5148.1306271,0.00011841,2]
[421348186,1777485226000,1850.419,0.00030137,120]
[421348191,1777485430000,363.36,6.344e-05,2]
[421348190,1777485430000,363.36,6.056e-05,2]
[421348189,1777485430000,363.36,5.768e-05,2]
[421348188,1777485430000,363.36,5.479e-05,2]
[421348195,1777485431000,363.36,7.498e-05,2]
[421348194,1777485431000,363.36,7.21e-05,2]
[421348193,1777485431000,363.36,6.921e-05,2]
[421348192,1777485431000,363.36,6.633e-05,2]
[421348196,1777485432000,363.36,7.786e-05,2]
[421348197,1777485432000,363.36,8.075e-05,2]
[421348202,1777485923000,188.1075406,0.0003013,120]
[421348203,1777485938000,-363.36,8.363e-05,2]
[421348205,1777486021000,96.88822,7.834e-05,2]
[421348204,1777486021000,53.11178,7.834e-05,2]
[421348230,1777486231000,-110217.12589999,8.599e-05,2]
[421348231,1777486231000,-478.66371399,8.599e-05,2]
[421348227,1777486231000,-207.2677,8.599e-05,2]
[421348229,1777486231000,-4834.73230001,8.599e-05,2]
[421348228,1777486231000,-2500.0,8.599e-05,2]
[421348277,1777486232000,-500.0,8.698e-05,2]
[421348275,1777486232000,-500.0,8.698e-05,2]
[421348268,1777486232000,-500.0,8.698e-05,2]
[421348271,1777486232000,-500.0,8.698e-05,2]
[421348273,1777486232000,-500.0,8.698e-05,2]
[421348266,1777486232000,-500.0,8.698e-05,2]
[421348281,1777486232000,-500.0,8.698e-05,2]
[421348269,1777486232000,-500.0,8.698e-05,2]
[421348264,1777486232000,-500.0,8.698e-05,2]
[421348279,1777486232000,-500.0,8.698e-05,2]
[421348303,1777486232000,-500.0,8.698e-05,2]
[421348297,1777486232000,-500.0,8.698e-05,2]
[421348300,1777486232000,-500.0,8.698e-05,2]
[421348261,1777486232000,-500.0,8.698e-05,2]
[421348284,1777486232000,-500.0,8.698e-05,2]
[421348287,1777486232000,-511.5687463,8.698e-05,2]
[421348294,1777486232000,-500.0,8.698e-05,2]
[421348291,1777486232000,-500.0,8.698e-05,2]
[421348307,1777486232000,-500.0,8.698e-05,2]
[421348310,1777486232000,-500.0,8.698e-05,2]
[421348313,1777486232000,-500.0,8.698e-05,2]
[421348319,1777486232000,-500.0,8.698e-05,2]
[421348283,1777486232000,-500.0,8.698e-05,2]
[421348255,1777486232000,-500.0,8.698e-05,2]
[421348253,1777486232000,-500.0,8.698e-05,2]
[421348254,1777486232000,-500.0,8.698e-05,2]
[421348233,1777486232000,-363.36,8.651e-05,2]
[421348234,1777486232000,-478.66371398,8.652e-05,2]
[421348232,1777486232000,-478.66371398,8.626e-05,2]
[421348235,1777486232000,-150.0,8.697e-05,2]
[421348239,1777486232000,-500.0,8.698e-05,2]
[421348240,1777486232000,-500.0,8.698e-05,2]
[421348244,1777486232000,-500.0,8.698e-05,2]
[421348242,1777486232000,-500.0,8.698e-05,2]
[421348238,1777486232000,-500.0,8.698e-05,2]
[421348236,1777486232000,-500.0,8.698e-05,2]
[421348259,1777486232000,-500.0,8.698e-05,2]
[421348241,1777486232000,-500.0,8.698e-05,2]
[421348243,1777486232000,-500.0,8.698e-05,2]
[421348245,1777486232000,-500.0,8.698e-05,2]
[421348246,1777486232000,-500.0,8.698e-05,2]
[421348247,1777486232000,-500.0,8.698e-05,2]
[421348257,1777486232000,-500.0,8.698e-05,2]
[421348250,1777486232000,-500.0,8.698e-05,2]
[421348251,1777486232000,-500.0,8.698e-05,2]
[421348248,1777486232000,-500.0,8.698e-05,2]
[421348316,1777486232000,-500.0,8.698e-05,2]
[421348252,1777486232000,-500.0,8.698e-05,2]
[421348237,1777486232000,-500.0,8.698e-05,2]
[421348321,1777486232000,-500.0,8.698e-05,2]
[421348249,1777486232000,-500.0,8.698e-05,2]
[421348333,1777486232000,-500.0,8.698e-05,2]
[421348350,1777486232000,-1884.88123349,8.698e-05,2]
[421348359,1777486232000,-1884.88123349,8.698e-05,2]
[421348358,1777486232000,-1884.88123349,8.698e-05,2]
[421348355,1777486232000,-1884.88123349,8.698e-05,2]
[421348357,1777486232000,-1884.88123349,8.698e-05,2]
[421348356,1777486232000,-1884.88123349,8.698e-05,2]
[421348361,1777486232000,-1884.88123349,8.698e-05,2]
[421348362,1777486232000,-1884.88123349,8.698e-05,2]
[421348363,1777486232000,-1884.88123349,8.698e-05,2]
[421348367,1777486232000,-170.641,8.698e-05,2]
[421348352,1777486232000,-1884.88123349,8.698e-05,2]
[421348366,1777486232000,-1932.661,8.698e-05,2]
[421348364,1777486232000,-1884.88123349,8.698e-05,2]
[421348371,1777486232000,-158192.23295697,8.699e-05,2]
[421348368,1777486232000,-250.0,8.698e-05,2]
[421348369,1777486232000,-19621.37878177,8.699e-05,2]
[421348370,1777486232000,-4508.40781179,8.699e-05,2]
[421348372,1777486232000,-1051.54508863,8.699e-05,2]
[421348374,1777486232000,-911.72705474,8.699e-05,2]
[421348373,1777486232000,-377.31,8.699e-05,2]
[421348375,1777486232000,-3213.21263462,8.699e-05,2]
[421348332,1777486232000,-500.0,8.698e-05,2]
[421348365,1777486232000,-1884.88123349,8.698e-05,2]
[421348353,1777486232000,-1884.88123349,8.698e-05,2]
[421348360,1777486232000,-1884.88123349,8.698e-05,2]
[421348354,1777486232000,-1884.88123349,8.698e-05,2]
[421348334,1777486232000,-500.0,8.698e-05,2]
[421348335,1777486232000,-500.0,8.698e-05,2]
[421348351,1777486232000,-1884.88123349,8.698e-05,2]
[421348327,1777486232000,-500.0,8.698e-05,2]
[421348336,1777486232000,-500.0,8.698e-05,2]
[421348324,1777486232000,-500.0,8.698e-05,2]
[421348328,1777486232000,-500.0,8.698e-05,2]
[421348330,1777486232000,-500.0,8.698e-05,2]
[421348329,1777486232000,-500.0,8.698e-05,2]
[421348331,1777486232000,-500.0,8.698e-05,2]
[421348341,1777486232000,-500.0,8.698e-05,2]
[421348338,1777486232000,-500.0,8.698e-05,2]
[421348326,1777486232000,-500.0,8.698e-05,2]
[421348339,1777486232000,-500.0,8.698e-05,2]
[421348340,1777486232000,-251.15687463,8.698e-05,2]
[421348337,1777486232000,-500.0,8.698e-05,2]
[421348344,1777486232000,-500.0,8.698e-05,2]
[421348346,1777486232000,-500.0,8.698e-05,2]
[421348343,1777486232000,-500.0,8.698e-05,2]
[421348345,1777486232000,-500.0,8.698e-05,2]
[421348342,1777486232000,-500.0,8.698e-05,2]
[421348347,1777486232000,-650.0,8.698e-05,2]
[421348349,1777486232000,-1884.88123349,8.698e-05,2]
[421348348,1777486232000,-1884.88123349,8.698e-05,2]
[421348381,1777486239000,-1017.225015,8.699e-05,2]
[421348384,1777486239000,-5753.47089063,8.699e-05,2]
[421348383,1777486239000,-741.54098972,8.699e-05,2]
[421348382,1777486239000,-76600.73168962,8.699e-05,2]
[421348433,1777486240000,-363.36,9.517e-05,2]
[421348432,1777486240000,-250.0,9.329e-05,2]
[421348431,1777486240000,-2000.0,9.254e-05,2]
[421348430,1777486240000,-363.36,9.228e-05,2]
[421348429,1777486240000,-500.0,9.228e-05,2]
[421348422,1777486240000,-1600.0,8.811e-05,2]
[421348420,1777486240000,-228548.18192003,8.699e-05,2]
[421348414,1777486240000,-825.22563,8.699e-05,2]
[421348419,1777486240000,-7555.5,8.699e-05,2]
[421348417,1777486240000,-278.38,8.699e-05,2]
[421348416,1777486240000,-7862.016756,8.699e-05,2]
[421348415,1777486240000,-6232.98184371,8.699e-05,2]
[421348413,1777486240000,-640.14698549,8.699e-05,2]
[421348421,1777486240000,-2259.5145,8.7e-05,2]
[421348418,1777486240000,-1747.60115128,8.699e-05,2]
[421348424,1777486240000,-1200.0,8.9e-05,3]
[421348444,1777486240000,-151.0,0.0001,2]
[421348426,1777486240000,-2500.0,9e-05,3]
[421348423,1777486240000,-150.0,8.834e-05,2]
[421348443,1777486240000,-500.0,0.0001,2]
[421348442,1777486240000,-151.0,0.0001,2]
[421348438,1777486240000,-150.0,9.834e-05,2]
[421348440,1777486240000,-1303.69218187,9.993e-05,2]
[421348439,1777486240000,-1600.0,9.913e-05,2]
[421348437,1777486240000,-363.36,9.805e-05,2]
[421348445,1777486240000,-500.0,0.0001,2]
[421348436,1777486240000,-200.0,9.74e-05,2]
[421348434,1777486240000,-4359.23,9.67e-05,2]
[421348435,1777486240000,-4288.04,9.728e-05,2]
[421348427,1777486240000,-1000.0,9.12e-05,2]
[421348425,1777486240000,-363.36,8.94e-05,2]
[421348428,1777486240000,-1401.14,9.202e-05,2]
[421348441,1777486240000,-151.0,0.0001,2]
[421348493,1777486241000,-160.0,0.00010545,2]
[421348486,1777486241000,-207.43500361,0.00010545,2]
[421348476,1777486241000,-9999.99,0.00010475,2]
[421348478,1777486241000,-999.99,0.00010475,2]
[421348489,1777486241000,-162.31979731,0.00010545,2]
[421348494,1777486241000,-363.36,0.0001067,2]
[421348503,1777486241000,-6005.29376771,0.000109,2]
[421348505,1777486241000,-150.0,0.00010933,2]
[421348512,1777486241000,-1600.0,0.00011014,2]
[421348511,1777486241000,-150.0,0.00010959,2]
[421348507,1777486241000,-363.36,0.00010959,2]
[421348499,1777486241000,-150.0,0.000108,2]
[421348482,1777486241000,-150.99,0.00010475,2]
[421348497,1777486241000,-150.0,0.000108,2]
[421348474,1777486241000,-24999.99,0.00010475,2]
[421348450,1777486241000,-151.0,0.0001,2]
[421348484,1777486241000,-9999.99,0.00010475,2]
[421348509,1777486241000,-150.0,0.00010959,2]
[421348447,1777486241000,-151.0,0.0001,2]
[421348458,1777486241000,-151.0,0.0001,2]
[421348446,1777486241000,-151.0,0.0001,2]
[421348449,1777486241000,-151.0,0.0001,2]
[421348460,1777486241000,-363.36,0.00010093,2]
[421348480,1777486241000,-7548.79,0.00010475,2]
[421348464,1777486241000,-363.36,0.00010382,2]
[421348454,1777486241000,-151.0,0.0001,2]
[421348452,1777486241000,-151.0,0.0001,2]
[421348456,1777486241000,-151.0,0.0001,2]
[421348468,1777486241000,-283.46,0.00010411,2]
[421348470,1777486241000,-9999.99,0.00010475,2]
[421348472,1777486241000,-1791.23,0.00010475,2]
[421348462,1777486241000,-1232.44755935,0.0001025,2]
[421348501,1777486241000,-150.0,0.00010834,2]
[421348466,1777486241000,-2000.0,0.0001041,2]
[421348517,1777486241000,-150.0,0.000112,2]
[421348554,1777486241000,-2000.0,0.00011567,2]
[421348581,1777486241000,-974605.84463744,0.00012,2]
[421348560,1777486241000,-350.0,0.00011716,2]
[421348562,1777486241000,-150.0,0.00011733,2]
[421348572,1777486241000,-250.0,0.00011852,2]
[421348574,1777486241000,-150.0,0.00011867,2]
[421348546,1777486241000,-2410.6831302,0.00011384,2]
[421348564,1777486241000,-2430.25918886,0.00011756,2]
[421348576,1777486241000,-5000.0,0.000119,4]
[421348568,1777486241000,-3700.0,0.000118,4]
[421348566,1777486241000,-1041.59601018,0.00011784,2]
[421348583,1777486241000,-5250.60714262,0.00012,2]
[421348570,1777486241000,-150.0,0.00011834,2]
[421348515,1777486241000,-150.0,0.00011067,2]
[421348578,1777486241000,-973.0,0.00012,5]
[421348556,1777486241000,-150.0,0.000116,2]
[421348547,1777486241000,-1067.4779845,0.00011384,2]
[421348543,1777486241000,-6784.969998,0.00011384,2]
[421348518,1777486241000,-349.34062511,0.00011206,2]
[421348520,1777486241000,-627.48942469,0.00011209,2]
[421348528,1777486241000,-499.99,0.00011281,2]
[421348524,1777486241000,-3864.25,0.00011281,2]
[421348558,1777486241000,-350.0,0.00011661,2]
[421348526,1777486241000,-9999.99,0.00011281,2]
[421348522,1777486241000,-29650.68,0.00011281,2]
[421348530,1777486241000,-7025.49,0.00011281,2]
[421348533,1777486241000,-1050.88,0.00011281,2]
[421348536,1777486241000,-150.0,0.00011333,2]
[421348538,1777486241000,-25565.181239,0.00011384,2]
[421348542,1777486241000,-22809.9600189,0.00011384,2]
[421348540,1777486241000,-777.7898768,0.00011384,2]
[421348550,1777486241000,-5982.4512923,0.00011384,2]
[421348552,1777486241000,-150.0,0.00011467,2]
[421348532,1777486241000,-299.99,0.00011281,2]
[421348756,1777486243000,-150.0,0.00012,2]
[421348738,1777486243000,-323.94847,0.00012,2]
[421348749,1777486243000,-4500.0,0.00012,2]
[421348748,1777486243000,-1288.13370887,0.00012,2]
[421348750,1777486243000,-854.51067496,0.00012,2]
[421348752,1777486243000,-300.0,0.00012,2]
[421348753,1777486243000,-200.0,0.00012,2]
[421348751,1777486243000,-151.0,0.00012,2]
[421348754,1777486243000,-200.88198543,0.00012,2]
[421348760,1777486243000,-617.81848648,0.00012055,2]
[421348757,1777486243000,-152.0,0.00012008,7]
[421348758,1777486243000,-152.0,0.0001202,7]
[421348759,1777486243000,-549.34171083,0.00012055,2]
[421348764,1777486243000,-1383.41649153,0.00012116,2]
[421348762,1777486243000,-750.0,0.00012055,2]
[421348763,1777486243000,-6114.58350847,0.00012055,2]
[421348761,1777486243000,-356.75629422,0.00012055,2]
[421348765,1777486243000,-216.58350847,0.00012116,2]
[421348766,1777486243000,-82.31259344,0.0001242,2]
[421348755,1777486243000,-234.80353375,0.00012,2]
[421348826,1777486246000,-1428.38747117,0.00012583,2]
[421348825,1777486246000,-313.16865801,0.00012583,2]
[421348823,1777486246000,-1703.83305752,0.00012583,2]
[421348824,1777486246000,-4006.43853905,0.00012583,2]
[421348838,1777486246000,-2000.0,0.00012615,2]
[421348829,1777486246000,-151.0,0.00012583,2]
[421348831,1777486246000,-209.40437684,0.00012583,2]
[421348830,1777486246000,-743.50770149,0.00012583,2]
[421348822,1777486246000,-555.48318851,0.00012583,2]
[421348842,1777486246000,-151.0,0.00012693,2]
[421348832,1777486246000,-151.56277928,0.00012583,2]
[421348828,1777486246000,-721.12765535,0.00012583,2]
[421348818,1777486246000,-760.79781,0.0001248,2]
[421348821,1777486246000,-2361.7007125,0.00012583,2]
[421348812,1777486246000,-54.10844097,0.0001246,2]
[421348819,1777486246000,-578.20924308,0.00012583,2]
[421348814,1777486246000,-760.79781,0.0001246,2]
[421348816,1777486246000,-760.79781,0.0001246,2]
[421348820,1777486246000,-924.71236789,0.00012583,2]
[421348811,1777486246000,-350.0,0.00012436,2]
[421348817,1777486246000,-760.7978,0.0001248,2]
[421348815,1777486246000,-760.7978,0.0001246,2]
[421348813,1777486246000,-706.68935903,0.0001246,2]
[421348810,1777486246000,-416.34311728,0.0001242,2]
[421348836,1777486246000,-500.0,0.00012615,2]
[421348827,1777486246000,-209.40437684,0.00012583,2]
[421348833,1777486246000,-174.61919141,0.00012583,2]
[421348834,1777486246000,-279.9045709,0.00012583,2]
[421348840,1777486246000,-151.0,0.00012638,2]
[421348846,1777486246000,-151.0,0.00012748,2]
[421348877,1777486246000,-217.15233878,0.00013131,2]
[421348873,1777486246000,-151.0,0.00013078,2]
[421348881,1777486246000,-359.12660286,0.00013131,2]
[421348872,1777486246000,-151.0,0.00013023,2]
[421348879,1777486246000,-181.08010149,0.00013131,2]
[421348874,1777486246000,-1481.23780761,0.00013131,2]
[421348875,1777486246000,-771.01748645,0.00013131,2]
[421348869,1777486246000,-350.0,0.00012978,2]
[421348870,1777486246000,-250.0,0.00013,2]
[421348871,1777486246000,-260.16482673,0.00013009,2]
[421348868,1777486246000,-151.0,0.00012968,2]
[421348865,1777486246000,-162.0,0.00012893,2]
[421348883,1777486246000,-151.0,0.00013133,2]
[421348863,1777486246000,-162.0,0.00012893,2]
[421348864,1777486246000,-162.0,0.00012893,2]
[421348885,1777486246000,-6005.29376767,0.00013171,2]
[421348848,1777486246000,-151.0,0.00012803,2]
[421348857,1777486246000,-1578.0,0.00012893,2]
[421348861,1777486246000,-162.0,0.00012893,2]
[421348858,1777486246000,-1578.0,0.00012893,2]
[421348855,1777486246000,-1578.0,0.00012893,2]
[421348844,1777486246000,-2000.0,0.00012724,2]
[421348850,1777486246000,-150.0,0.00012834,2]
[421348852,1777486246000,-151.0,0.00012858,2]
[421348866,1777486246000,-171.0,0.00012893,2]
[421348867,1777486246000,-151.0,0.00012913,2]
[421348969,1777486247000,-734.0,0.00015127,5]
[421348971,1777486247000,-488.0,0.00015127,5]
[421348977,1777486247000,-223.41311372,0.00015323,2]
[421348963,1777486247000,-150.0,0.00015068,2]
[421348955,1777486247000,-160.0,0.00015,2]
[421348965,1777486247000,-151.0,0.00015068,2]
[421348961,1777486247000,-3340.0,0.00015,2]
[421348959,1777486247000,-820.0,0.00015,2]
[421348944,1777486247000,-3532.0,0.00014853,2]
[421348966,1777486247000,-151.0,0.00015068,2]
[421348973,1777486247000,-599.60298507,0.00015322,2]
[421348975,1777486247000,-747.8093786,0.00015322,2]
[421349007,1777486247000,-176.237799,0.00016438,2]
[421348979,1777486247000,-390.1955307,0.00015419,2]
[421348983,1777486247000,-2000.0,0.000162,2]
[421348985,1777486247000,-166.66,0.00016306,2]
[421348999,1777486247000,-600.0,0.00016438,2]
[421348987,1777486247000,-1134.5,0.00016438,2]
[421348989,1777486247000,-5099.08,0.00016438,2]
[421349006,1777486247000,-600.0,0.00016438,2]
[421349001,1777486247000,-600.0,0.00016438,2]
[421349003,1777486247000,-600.0,0.00016438,2]
[421348993,1777486247000,-271.70978977,0.00016438,2]
[421348991,1777486247000,-8498.47,0.00016438,2]
[421348940,1777486247000,-150.0,0.00014834,2]
[421348995,1777486247000,-170.59714031,0.00016438,2]
[421348997,1777486247000,-500.0,0.00016438,2]
[421348981,1777486247000,-150.0,0.00015834,2]
[421348957,1777486247000,-589.0,0.00015,2]
[421348921,1777486247000,-150.0,0.00013834,2]
[421348953,1777486247000,-300.0,0.00015,2]
[421349009,1777486247000,-176.237799,0.00016438,2]
[421348893,1777486247000,-1536.04360649,0.00013679,2]
[421348891,1777486247000,-296.84,0.00013485,2]
[421348887,1777486247000,-1600.0,0.00013217,2]
[421348895,1777486247000,-308.72592879,0.00013679,2]
[421348889,1777486247000,-2712.78623325,0.00013262,2]
[421348897,1777486247000,-225.18697532,0.00013679,2]
[421348903,1777486247000,-541.28,0.00013698,2]
[421348899,1777486247000,-181.08010149,0.00013679,2]
[421348901,1777486247000,-500.0,0.00013698,2]
[421348908,1777486247000,-552.05602129,0.00013698,2]
[421348905,1777486247000,-477.20426783,0.00013698,2]
[421348910,1777486247000,-200.0,0.00013699,2]
[421348912,1777486247000,-2500.0,0.00013699,2]
[421348914,1777486247000,-522.58,0.00013699,2]
[421348916,1777486247000,-325.83,0.000137,2]
[421348923,1777486247000,-2000.0,0.0001388,2]
[421348919,1777486247000,-162.0,0.00013737,2]
[421348927,1777486247000,-233.51889341,0.00014227,2]
[421348925,1777486247000,-1592.87721993,0.00014227,2]
[421348929,1777486247000,-2906.93584222,0.00014768,2]
[421348934,1777486247000,-242.15909246,0.00014775,2]
[421348931,1777486247000,-1651.81367706,0.00014775,2]
[421348936,1777486247000,-1663.0,0.00014831,2]
[421348949,1777486247000,-623.0,0.00014853,2]
[421348946,1777486247000,-1350.0,0.00014853,2]
[421348938,1777486247000,-416.0,0.00014831,2]
[421348942,1777486247000,-1049.0,0.00014853,2]
[421349022,1777486247000,-151.0,0.00016438,2]
[421348951,1777486247000,-927.0,0.00014864,2]
[421349024,1777486247000,-151.0,0.00016438,2]
[421349086,1777486247000,-162.0,0.000188,2]
[421349084,1777486247000,-166.66,0.00018459,2]
[421349088,1777486247000,-150.0,0.00018834,2]
[421349103,1777486247000,-8498.49,0.00019178,2]
[421349090,1777486247000,-4409.56,0.00018856,2]
[421349107,1777486247000,-161.04,0.00019242,2]
[421349094,1777486247000,-166.66,0.00018997,2]
[421349092,1777486247000,-3399.39,0.00018874,2]
[421349097,1777486247000,-400.0,0.00019,2]
[421349101,1777486247000,-5099.1,0.00019178,2]
[421349105,1777486247000,-325.83,0.000192,2]
[421349109,1777486247000,-3518.69354429,0.00019287,46]
[421349099,1777486247000,-1117.0,0.00019112,2]
[421349111,1777486247000,-150.0,0.00019834,2]
[421349113,1777486247000,-2000.0,0.000199,2]
[421349115,1777486247000,-175.88,0.0002,2]
[421349128,1777486247000,-418.0,0.0002,2]
[421349123,1777486247000,-371.0,0.0002,2]
[421349130,1777486247000,-167.98134273,0.0002,2]
[421349132,1777486247000,-722.0,0.0002,2]
[421349117,1777486247000,-280.0,0.0002,2]
[421349121,1777486247000,-150.0,0.0002,2]
[421349120,1777486247000,-151.0,0.0002,2]
[421349124,1777486247000,-558.0,0.0002,2]
[421349126,1777486247000,-682.0,0.0002,2]
[421349136,1777486247000,-307.0,0.0002,2]
[421349012,1777486247000,-176.237799,0.00016438,2]
[421349072,1777486247000,-623.0,0.00017853,2]
[421349070,1777486247000,-442.219,0.00017853,2]
[421349134,1777486247000,-249.0,0.0002,2]
[421349067,1777486247000,-150.0,0.00017834,2]
[421349080,1777486247000,-925.99246134,0.00018156,2]
[421349014,1777486247000,-176.237799,0.00016438,2]
[421349018,1777486247000,-460.7236144,0.00016438,2]
[421349016,1777486247000,-500.0,0.00016438,2]
[421349028,1777486247000,-292.2170785,0.000165,5]
[421349032,1777486247000,-894.0,0.000165,2]
[421349030,1777486247000,-325.83,0.000165,2]
[421349020,1777486247000,-196.7986856,0.00016438,2]
[421349034,1777486247000,-187.49,0.00016712,2]
[421349037,1777486247000,-150.0,0.00016834,2]
[421349057,1777486247000,-6005.29376767,0.00017743,2]
[421349053,1777486247000,-300.0,0.0001747,2]
[421349061,1777486247000,-5099.08,0.00017808,2]
[421349039,1777486247000,-166.66,0.00016844,2]
[421349026,1777486247000,-500.0,0.00016443,2]
[421349049,1777486247000,-166.66,0.00017382,2]
[421349082,1777486247000,-1134.5,0.0001841,2]
[421349065,1777486247000,-1663.0,0.00017831,2]
[421349063,1777486247000,-8498.47,0.00017808,2]
[421349078,1777486247000,-775.47832561,0.00018061,2]
[421349059,1777486247000,-1578.0,0.0001779,2]
[421349074,1777486247000,-166.66,0.0001792,2]
[421349076,1777486247000,-621.78829552,0.00018061,2]
[421349047,1777486247000,-350.0,0.00017,2]
[421349043,1777486247000,-1000.0,0.00016986,2]
[421349055,1777486247000,-697.83344169,0.00017534,2]
[421349051,1777486247000,-162.0,0.0001747,2]
[421349045,1777486247000,-1000.0,0.00016991,2]
[421349041,1777486247000,-1000.0,0.00016986,2]
[421349216,1777486248000,-177.01,0.00022019,30]
[421349212,1777486248000,-307.0,0.00022,2]
[421349210,1777486248000,-249.0,0.00022,2]
[421349208,1777486248000,-722.0,0.00022,2]
[421349193,1777486248000,-250.0,0.00021948,2]
[421349199,1777486248000,-325.83,0.00022,7]
[421349204,1777486248000,-682.0,0.00022,2]
[421349201,1777486248000,-371.0,0.00022,2]
[421349203,1777486248000,-558.0,0.00022,2]
[421349197,1777486248000,-151.0,0.00022,2]
[421349206,1777486248000,-418.0,0.00022,2]
[421349223,1777486248000,-162.0,0.00022362,2]
[421349229,1777486248000,-169.52,0.00022466,2]
[421349218,1777486248000,-3714.54715191,0.00022299,63]
[421349219,1777486248000,-6005.29376767,0.00022315,2]
[421349221,1777486248000,-1134.5,0.00022353,2]
[421349225,1777486248000,-200.0,0.00022396,2]
[421349227,1777486248000,-271.27,0.00022466,2]
[421349231,1777486248000,-350.0,0.00022496,2]
[421349233,1777486248000,-3801.34,0.00022562,2]
[421349235,1777486248000,-150.0,0.00022834,2]
[421349245,1777486248000,-280.0,0.00023,2]